[Event "POL-chT 2nd League Juniors 2020"]
[Site "Sypniewo"]
[Date "2020.10.28"]
[Round "7.17"]
[White "Kudlak, Julia"]
[Black "Tarka, Aleksandra"]
[Result "1-0"]
[ECO "A80"]
[WhiteElo "1574"]
[BlackElo "1676"]
[Annotator "NA"]
[PlyCount "53"]
[EventDate "2020.10.23"]
[EventType "team-tourn"]
[EventCountry "POL"]
[SourceTitle "playchess.com"]
[Source "ChessBase"]
[SourceQuality "1"]
[TimeControl "5400+30"]

1. d4 {[%emt 0:00:00]} f5 {[%emt 0:00:00]} 2. g4 {[%emt 0:02:00]} fxg4 {[%emt 0:00:21]} 3. h3 {[%emt 0:00:54]} d5 {[%emt 0:00:30]} 4. hxg4 {[%emt 0:01:21]} Bxg4 {[%emt 0:01:38]} 5. Qd3 {[%emt 0:03:12]} Nf6 {[%emt 0:18:48]} 6. f3 {[%emt 0:03:36]} Bh5 {[%emt 0:27:37]} 7. e4 {[%emt 0:06:23]} c6 {[%emt 0:14:34]} 8. e5 {[%emt 0:05:21]} Bg6 {[%emt 0:00:10]} 9. Qxg6+ {[%emt 0:00:25]} hxg6 {[%emt 0:01:30]} 10. Rxh8 {[%emt 0:01:28]} Ne4 {[%emt 0:09:43]} 11. fxe4 {[%emt 0:07:45]} dxe4 {[%emt 0:00:47]} 12. c3 {[%emt 0:00:56]} c5 {[%emt 0:08:39]} 13. Bg2 {[%emt 0:08:50]} cxd4 {[%emt 0:02:25]} 14. Bxe4 {[%emt 0:02:01]} Qb6 {[%emt 0:00:25]} 15. Ne2 {[%emt 0:04:11]} Nd7 {[%emt 0:05:50]} 16. cxd4 {[%emt 0:03:29]} O-O-O {[%emt 0:01:20]} 17. Nbc3 {[%emt 0:03:13]} Kb8 {[%emt 0:03:19]} 18. Nd5 {[%emt 0:01:35]} Qe6 {[%emt 0:00:46]} 19. Bf4 {[%emt 0:02:21]} Nb6 {[%emt 0:00:31]} 20. Nxb6 {[%emt 0:02:15]} Qxb6 {[%emt 0:00:15]} 21. e6+ {[%emt 0:01:19]} Ka8 {[%emt 0:00:35]} 22. Rc1 {[%emt 0:00:49]} Qxe6 {[%emt 0:00:37]} 23. Be5 {[%emt 0:02:33]} Qg4 {[%emt 0:00:36]} 24. Bh1 {[%emt 0:04:05]} e6 {[%emt 0:00:25]} 25. Rc7 {[%emt 0:04:51]} Rb8 {[%emt 0:00:37]} 26. Bxb7+ {[%emt 0:00:14]} Rxb7 {[%emt 0:00:14]} 27. Rc8+ {[%emt 0:00:12]} 1-0

[Event "POL-chT 2nd League Juniors 2020"]
[Site "Sypniewo"]
[Date "2020.10.28"]
[Round "7.18"]
[White "Pastuszko, Katarzyna"]
[Black "Tim, Anna"]
[Result "1-0"]
[ECO "C13"]
[WhiteElo "1251"]
[BlackElo "1237"]
[Annotator "NA"]
[PlyCount "83"]
[EventDate "2020.10.23"]
[EventType "team-tourn"]
[EventCountry "POL"]
[SourceTitle "playchess.com"]
[Source "ChessBase"]
[SourceQuality "1"]
[TimeControl "5400+30"]

1. e4 {[%emt 0:00:00]} e6 {[%emt 0:00:00]} 2. d4 {[%emt 0:00:00]} d5 3. Nc3 {[%emt 0:00:00]} Nf6 {[%emt 0:00:00]} 4. e5 {[%emt 0:00:11]} Nfd7 {[%emt 0:00:15]} 5. h4 {[%emt 0:00:45]} a6 {[%emt 0:02:39]} 6. Bg5 {[%emt 0:00:43]} Be7 {[%emt 0:00:16]} 7. Qd3 {[%emt 0:02:08]} c5 {[%emt 0:02:32]} 8. f4 {[%emt 0:03:20]} Nc6 {[%emt 0:03:11]} 9. Nge2 {[%emt 0:03:58]} f6 {[%emt 0:19:57]} 10. exf6 {[%emt 0:01:57]} Bxf6 {[%emt 0:00:39]} 11. Qe3 {[%emt 0:07:37]} Qe7 {[%emt 0:02:15]} 12. O-O-O {[%emt 0:10:44]} b5 {[%emt 0:09:54]} 13. f5 {[%emt 0:04:56]} Nxd4 {[%emt 0:09:52]} 14. fxe6 {[%emt 0:10:15]} Qxe6 {[%emt 0:08:45]} 15. Nxd4 {[%emt 0:06:57]} Qxe3+ {[%emt 0:00:16]} 16. Bxe3 {[%emt 0:00:07]} cxd4 {[%emt 0:00:45]} 17. Bxd4 {[%emt 0:01:27]} Bb7 {[%emt 0:00:41]} 18. Be2 {[%emt 0:02:08]} O-O-O {[%emt 0:02:41]} 19. Bf3 {[%emt 0:08:31]} Bxd4 {[%emt 0:04:17]} 20. Rxd4 {[%emt 0:01:12]} Nf6 {[%emt 0:00:58]} 21. Rhd1 {[%emt 0:02:09]} Rhe8 {[%emt 0:02:44]} 22. g4 {[%emt 0:09:58]} Re3 {[%emt 0:01:39]} 23. R1d3 {[%emt 0:00:44]} Rxd3 {[%emt 0:01:22]} 24. cxd3 {[%emt 0:00:35]} Rd6 {[%emt 0:02:10]} 25. g5 {[%emt 0:01:02]} Nd7 {[%emt 0:00:16]} 26. Nxd5 {[%emt 0:01:17]} Bxd5 {[%emt 0:01:04]} 27. Rxd5 {[%emt 0:00:18]} Rxd5 {[%emt 0:00:07]} 28. Bxd5 {[%emt 0:00:13]} Ne5 {[%emt 0:00:16]} 29. Be4 {[%emt 0:02:13]} h6 {[%emt 0:00:36]} 30. Kd2 {[%emt 0:03:08]} Kd7 {[%emt 0:00:31]} 31. Ke3 {[%emt 0:01:03]} Ke6 {[%emt 0:01:39]} 32. Kf4 {[%emt 0:01:36]} a5 {[%emt 0:01:00]} 33. b3 {[%emt 0:00:35]} b4 {[%emt 0:00:30]} 34. d4 {[%emt 0:00:34]} Nf7 {[%emt 0:00:13]} 35. Kg4 {[%emt 0:06:41]} Nd6 {[%emt 0:00:33]} 36. Bc6 {[%emt 0:00:29]} Nf5 {[%emt 0:02:40]} 37. Bd7+ {[%emt 0:00:23]} Kxd7 {[%emt 0:00:15]} 38. Kxf5 {[%emt 0:00:05]} Ke7 {[%emt 0:00:55]} 39. Ke5 {[%emt 0:00:28]} hxg5 {[%emt 0:00:50]} 40. hxg5 {[%emt 0:00:07]} g6 {[%emt 0:00:09]} 41. d5 {[%emt 0:00:43]} Kd7 {[%emt 0:00:04]} 42. Kf6 {[%emt 0:00:47]} 1-0

[Event "POL-chT 2nd League Juniors 2020"]
[Site "Sypniewo"]
[Date "2020.10.28"]
[Round "7.19"]
[White "Lewandowski, Wiktor"]
[Black "Wysocki, Mateusz"]
[Result "1/2-1/2"]
[ECO "B32"]
[WhiteElo "1756"]
[BlackElo "1855"]
[Annotator "NA"]
[PlyCount "61"]
[EventDate "2020.10.23"]
[EventType "team-tourn"]
[EventCountry "POL"]
[SourceTitle "playchess.com"]
[Source "ChessBase"]
[SourceQuality "1"]
[TimeControl "5400+30"]

1. e4 {[%emt 0:00:00]} c5 {[%emt 0:00:00]} 2. Nf3 {[%emt 0:00:00]} Nc6 {[%emt 0:00:00]} 3. d4 {[%emt 0:00:00]} cxd4 {[%emt 0:00:00]} 4. Nxd4 {[%emt 0:00:00]} e5 $11 {[%emt 0:00:00]} 5. Nb5 {[%emt 0:00:00]} d6 {[%emt 0:00:06]} 6. N1c3 {[%emt 0:00:28]} a6 {[%emt 0:00:08]} 7. Na3 {[%emt 0:00:05]} Be7 {[%emt 0:00:02]} 8. g3 {[%emt 0:03:30]} Nf6 {[%emt 0:04:55]} 9. Bg2 {[%emt 0:01:00]} O-O {[%emt 0:06:11]} 10. Nc4 {[%emt 0:05:12]} Bg4 {[%emt 0:08:04]} 11. f3 {[%emt 0:02:43]} Be6 {[%emt 0:00:34]} 12. Ne3 {[%emt 0:00:46]} Rc8 {[%emt 0:03:43]} 13. O-O {[%emt 0:01:31]} Nd4 {[%emt 0:10:50]} 14. Kh1 {[%emt 0:04:18]} b5 {[%emt 0:01:51]} 15. Ncd5 {[%emt 0:07:06]} Nxd5 {[%emt 0:11:13]} 16. exd5 {[%emt 0:00:07]} Bd7 {[%emt 0:00:02]} 17. c3 {[%emt 0:01:34]} Nf5 {[%emt 0:00:07]} 18. Nxf5 {[%emt 0:02:42]} Bxf5 {[%emt 0:00:20]} 19. f4 {[%emt 0:01:46]} Qd7 {[%emt 0:02:31]} 20. Be3 {[%emt 0:03:34]} exf4 {[%emt 0:10:56]} 21. Bxf4 {[%emt 0:00:24]} Bf6 {[%emt 0:02:11]} 22. Rc1 {[%emt 0:05:31]} Rfe8 {[%emt 0:04:36]} 23. Qd2 {[%emt 0:01:58]} g6 {[%emt 0:02:39]} 24. Rfe1 {[%emt 0:05:49]} h5 {[%emt 0:06:27]} 25. h4 {[%emt 0:03:22]} a5 {[%emt 0:03:12]} 26. Rxe8+ {[%emt 0:01:01]} Rxe8 {[%emt 0:00:08]} 27. Re1 {[%emt 0:00:18]} Rb8 {[%emt 0:07:45]} 28. Bg5 {[%emt 0:02:50]} Be5 {[%emt 0:00:16]} 29. Bf4 {[%emt 0:00:10]} Bf6 {[%emt 0:02:50]} 30. Bg5 {[%emt 0:00:04]} Be5 {[%emt 0:00:04]} 31. Bf4 1/2-1/2

[Event "POL-chT 2nd League Juniors 2020"]
[Site "Sypniewo"]
[Date "2020.10.28"]
[Round "7.20"]
[White "Komendecki, Antoni"]
[Black "Doroba, Ludwik"]
[Result "*"]
[ECO "B40"]
[WhiteElo "1801"]
[BlackElo "1330"]
[Annotator "NA"]
[PlyCount "21"]
[EventDate "2020.10.23"]
[EventType "team-tourn"]
[EventCountry "POL"]
[SourceTitle "playchess.com"]
[Source "ChessBase"]
[SourceQuality "1"]
[TimeControl "5400+30"]

1. e4 {[%emt 0:00:00]} c5 {[%emt 0:00:00]} 2. Nf3 {[%emt 0:00:00]} e6 {[%emt 0:00:00]} 3. d4 {[%emt 0:00:00]} cxd4 {[%emt 0:00:00]} 4. Nxd4 {[%emt 0:00:00]} Nc6 {[%emt 0:00:00]} 5. Nc3 {[%emt 0:00:00]} Qc7 {[%emt 0:00:37]} 6. Be3 {[%emt 0:00:06]} a6 {[%emt 0:00:18]} 7. Be2 {[%emt 0:00:38]} Nf6 {[%emt 0:00:35]} 8. O-O {[%emt 0:00:18]} Be7 {[%emt 0:00:51]} 9. f4 {[%emt 0:00:45]} d6 {[%emt 0:00:17]} 10. Bf3 {[%emt 0:00:20]} Bd7 {[%emt 0:02:09]} 11. Kh1 {[%emt 0:03:49]} *

[Event "POL-chT 2nd League Juniors 2020"]
[Site "Sypniewo"]
[Date "2020.10.28"]
[Round "7.20"]
[White "Wojtasik, Szymon"]
[Black "Kolodziejski, Piotr"]
[Result "0-1"]
[ECO "B49"]
[WhiteElo "1380"]
[BlackElo "1905"]
[Annotator "ChessBase"]
[PlyCount "124"]
[EventDate "2020.10.23"]
[EventType "team-tourn"]
[EventCountry "POL"]
[SourceTitle "playchess.com"]
[Source "ChessBase"]
[SourceQuality "1"]
[TimeControl "5400+30"]

1. e4 {[%emt 0:00:00]} c5 {[%emt 0:00:00]} 2. Nf3 {[%emt 0:00:00]} e6 {[%emt 0:00:00]} 3. d4 {[%emt 0:00:00]} cxd4 {[%emt 0:00:00]} 4. Nxd4 {[%emt 0:00:00]} Nc6 {[%emt 0:00:00]} 5. Nc3 {[%emt 0:00:00]} Qc7 {[%emt 0:00:37]} 6. Be3 {[%emt 0:00:06]} a6 {[%emt 0:00:18]} 7. Be2 {[%emt 0:00:38]} Nf6 {[%emt 0:00:35]} 8. O-O {[%emt 0:00:18]} Be7 {[%emt 0:00:51]} 9. f4 {[%emt 0:00:45]} d6 {[%emt 0:00:17]} 10. Bf3 {[%emt 0:00:20]} Bd7 {[%emt 0:02:09]} 11. Kh1 {[%emt 0:03:49]} O-O {[%emt 0:06:29]} 12. g4 {[%emt 0:01:55]} Nxd4 {[%emt 0:03:47]} 13. Qxd4 {[%emt 0:09:44]} e5 {[%emt 0:06:34]} 14. Qd1 {[%emt 0:11:25]} exf4 {[%emt 0:03:14]} 15. Bxf4 {[%emt 0:01:34]} Bc6 {[%emt 0:03:40]} 16. Bg2 {[%emt 0:13:14]} Rad8 {[%emt 0:15:41]} 17. g5 {[%emt 0:15:02]} Nd7 {[%emt 0:01:06]} 18. Qd2 {[%emt 0:02:05]} Nc5 {[%emt 0:09:04]} 19. Nd5 {[%emt 0:05:12]} Bxd5 {[%emt 0:03:27]} 20. exd5 {[%emt 0:02:03]} Rfe8 {[%emt 0:06:59]} 21. Rae1 {[%emt 0:20:30]} Bf8 {[%emt 0:00:31]} 22. Qf2 {[%emt 0:11:46]} Rxe1 {[%emt 0:06:44]} 23. Rxe1 {[%emt 0:00:30]} a5 {[%emt 0:02:17]} 24. c3 {[%emt 0:00:30]} Nd3 {[%emt 0:01:12]} 25. Qd2 {[%emt 0:00:23]} Nxe1 {[%emt 0:00:31]} 26. Qxe1 {[%emt 0:00:01]} Qd7 {[%emt 0:00:47]} 27. c4 {[%emt 0:00:57]} Re8 {[%emt 0:02:27]} 28. Qd2 {[%emt 0:00:36]} Qg4 {[%emt 0:02:57]} 29. Bf1 {[%emt 0:00:24]} Re4 {[%emt 0:01:26]} 30. Bg3 {[%emt 0:00:12]} Rd4 {[%emt 0:02:13]} 31. Qc3 {[%emt 0:00:57]} Rd1 {[%emt 0:01:00]} 32. Kg2 {[%emt 0:00:26]} Qxg5 {[%emt 0:01:28]} 33. Qxa5 {[%emt 0:00:29]} Qe3 {[%emt 0:03:34]} 34. Qc3 {[%emt 0:00:36]} Rd2+ {[%emt 0:01:23]} 35. Kh1 {[%emt 0:00:29]} Qxc3 {[%emt 0:01:37]} 36. bxc3 {[%emt 0:00:02]} Rxa2 {[%emt 0:00:25]} 37. c5 {[%emt 0:00:38]} dxc5 {[%emt 0:00:45]} 38. c4 {[%emt 0:00:02]} f6 {[%emt 0:01:26]} 39. Bh3 {[%emt 0:00:51]} Be7 {[%emt 0:02:07]} 40. Be6+ {[%emt 0:00:57]} Kf8 {[%emt 0:00:31]} 41. Bc7 {[%emt 0:00:25]} Rd2 {[%emt 0:00:24]} 42. Bc8 {[%emt 0:00:14]} b6 {[%emt 0:00:51]} 43. Bd7 {[%emt 0:00:40]} g6 {[%emt 0:01:31]} 44. Be6 {[%emt 0:00:42]} Kg7 {[%emt 0:01:44]} 45. Bd7 {[%emt 0:00:19]} f5 {[%emt 0:02:07]} 46. Be5+ {[%emt 0:00:31]} Kf8 {[%emt 0:00:36]} 47. Kg1 {[%emt 0:00:24]} Bd8 {[%emt 0:01:21]} 48. Kf1 {[%emt 0:00:44]} Ke7 {[%emt 0:00:27]} 49. Bb5 {[%emt 0:00:02]} g5 {[%emt 0:00:43]} 50. Ke1 {[%emt 0:00:09]} Ra2 {[%emt 0:00:17]} 51. Kd1 {[%emt 0:01:13]} h6 {[%emt 0:01:00]} 52. Bg7 {[%emt 0:00:31]} Rxh2 {[%emt 0:00:28]} 53. Ke1 {[%emt 0:00:24]} Bc7 {[%emt 0:00:17]} 54. Kf1 {[%emt 0:00:17]} h5 {[%emt 0:00:38]} 55. Ba6 {[%emt 0:00:12]} Kf7 {[%emt 0:00:21]} 56. Bc3 {[%emt 0:00:35]} Rc2 {[%emt 0:00:20]} 57. Bh8 {[%emt 0:00:07]} h4 {[%emt 0:00:20]} 58. Bc8 {[%emt 0:00:37]} Kg6 {[%emt 0:00:06]} 59. Ba6 {[%emt 0:00:14]} h3 {[%emt 0:00:10]} 60. d6 {[%emt 0:00:41]} Bxd6 {[%emt 0:00:14]} 61. Bb7 {[%emt 0:00:35]} h2 {[%emt 0:00:32]} 62. Bd5 {[%emt 0:00:39]} Rc1+ {[%emt 0:00:30]} 0-1

[Event "POL-chT 2nd League Juniors 2020"]
[Site "Sypniewo"]
[Date "2020.10.28"]
[Round "7.21"]
[White "Komendecki, Antoni"]
[Black "Doroba, Ludwik"]
[Result "1-0"]
[ECO "B01"]
[WhiteElo "1801"]
[BlackElo "1330"]
[Annotator "NA"]
[PlyCount "59"]
[EventDate "2020.10.23"]
[EventType "team-tourn"]
[EventCountry "POL"]
[SourceTitle "playchess.com"]
[Source "ChessBase"]
[SourceQuality "1"]
[TimeControl "5400+30"]

1. e4 {[%emt 0:00:00]} d5 {[%emt 0:00:00]} 2. exd5 {[%emt 0:00:00]} Nf6 {[%emt 0:00:00]} 3. Nf3 {[%emt 0:00:00]} Nxd5 {[%emt 0:01:02]} 4. d4 {[%emt 0:00:01]} g6 {[%emt 0:01:16]} 5. c4 {[%emt 0:03:58]} Nb6 {[%emt 0:00:34]} 6. Nc3 {[%emt 0:01:12]} Bg7 {[%emt 0:01:17]} 7. Be3 {[%emt 0:09:34]} O-O {[%emt 0:06:35]} 8. Be2 {[%emt 0:05:17]} Nc6 {[%emt 0:04:05]} 9. h3 {[%emt 0:01:40]} e6 {[%emt 0:06:50]} 10. O-O {[%emt 0:02:09]} Qe7 {[%emt 0:14:26]} 11. Qc2 {[%emt 0:02:05]} e5 {[%emt 0:10:14]} 12. d5 {[%emt 0:12:41]} Nb4 {[%emt 0:07:42]} 13. Qb3 {[%emt 0:01:11]} Na6 {[%emt 0:02:40]} 14. Rac1 {[%emt 0:13:08]} Nd7 {[%emt 0:10:12]} 15. Rfd1 {[%emt 0:01:48]} b6 {[%emt 0:04:40]} 16. Na4 {[%emt 0:11:43]} Qb4 {[%emt 0:03:22]} 17. Qxb4 {[%emt 0:01:26]} Nxb4 {[%emt 0:00:06]} 18. a3 {[%emt 0:00:09]} Na6 {[%emt 0:00:07]} 19. b4 {[%emt 0:00:18]} Rd8 {[%emt 0:07:07]} 20. Nd2 {[%emt 0:15:11]} f5 {[%emt 0:01:11]} 21. f3 {[%emt 0:01:32]} Nf6 {[%emt 0:01:06]} 22. Nb3 {[%emt 0:03:08]} Nb8 {[%emt 0:02:00]} 23. Nc3 {[%emt 0:03:34]} a6 {[%emt 0:00:47]} 24. c5 {[%emt 0:01:28]} b5 {[%emt 0:00:26]} 25. Na5 {[%emt 0:00:56]} Kf7 {[%emt 0:01:00]} 26. a4 {[%emt 0:01:46]} bxa4 {[%emt 0:00:23]} 27. Bc4 {[%emt 0:00:10]} Ke7 {[%emt 0:00:36]} 28. Nxa4 {[%emt 0:00:38]} Ne8 {[%emt 0:01:10]} 29. d6+ {[%emt 0:01:38]} cxd6 {[%emt 0:01:24]} 30. Bd5 {[%emt 0:00:20]} 1-0

[Event "POL-chT 2nd League Juniors 2020"]
[Site "Sypniewo"]
[Date "2020.10.28"]
[Round "7.22"]
[White "Rumniak, Aleksy"]
[Black "Karaszewski, Gabriel"]
[Result "1/2-1/2"]
[ECO "B56"]
[WhiteElo "1117"]
[BlackElo "1614"]
[Annotator "NA"]
[PlyCount "147"]
[EventDate "2020.10.23"]
[EventType "team-tourn"]
[EventCountry "POL"]
[SourceTitle "playchess.com"]
[Source "ChessBase"]
[SourceQuality "1"]
[TimeControl "5400+30"]

1. e4 {[%emt 0:00:00]} c5 {[%emt 0:00:00]} 2. Nf3 {[%emt 0:00:00]} Nc6 {[%emt 0:00:00]} 3. d4 {[%emt 0:00:00]} cxd4 {[%emt 0:00:00]} 4. Nxd4 {[%emt 0:00:01]} Nf6 {[%emt 0:00:00]} 5. Nc3 {[%emt 0:00:22]} d6 {[%emt 0:00:00]} 6. g3 {[%emt 0:03:58]} e5 {[%emt 0:00:00]} 7. Nde2 {[%emt 0:06:37]} Be7 {[%emt 0:00:00]} 8. Bg2 {[%emt 0:00:25]} O-O {[%emt 0:00:15]} 9. O-O {[%emt 0:00:56]} Be6 {[%emt 0:00:04]} 10. h3 {[%emt 0:05:56]} Nd7 {[%emt 0:00:11]} 11. Nd5 {[%emt 0:12:58]} Rc8 {[%emt 0:00:47]} 12. c4 {[%emt 0:11:26]} Nc5 {[%emt 0:01:02]} 13. Be3 {[%emt 0:12:38]} Bg5 {[%emt 0:02:47]} 14. a3 {[%emt 0:07:35]} Bxe3 {[%emt 0:00:19]} 15. fxe3 {[%emt 0:01:10]} Qg5 {[%emt 0:02:19]} 16. h4 {[%emt 0:08:13]} Qh6 {[%emt 0:09:47]} 17. Nec3 {[%emt 0:03:17]} Kh8 {[%emt 0:09:20]} 18. b4 {[%emt 0:06:05]} Nd7 {[%emt 0:01:53]} 19. Qe2 {[%emt 0:02:14]} a6 {[%emt 0:27:31]} 20. Rac1 {[%emt 0:06:20]} Rfe8 {[%emt 0:00:32]} 21. Rfd1 {[%emt 0:01:41]} Qg6 {[%emt 0:01:09]} 22. Kh2 {[%emt 0:01:03]} Bg4 {[%emt 0:00:37]} 23. Bf3 {[%emt 0:00:08]} Bxf3 {[%emt 0:00:04]} 24. Qxf3 {[%emt 0:00:07]} Nd8 {[%emt 0:00:56]} 25. Ne2 {[%emt 0:01:47]} a5 {[%emt 0:06:22]} 26. g4 {[%emt 0:04:22]} axb4 {[%emt 0:05:01]} 27. axb4 {[%emt 0:00:07]} Re6 {[%emt 0:02:31]} 28. Ng3 {[%emt 0:03:09]} Nf6 {[%emt 0:03:11]} 29. g5 {[%emt 0:01:08]} Nxd5 {[%emt 0:00:59]} 30. exd5 {[%emt 0:00:18]} Re8 {[%emt 0:02:45]} 31. Qf5 {[%emt 0:00:44]} Rc7 {[%emt 0:03:10]} 32. h5 {[%emt 0:00:27]} Qxf5 {[%emt 0:00:06]} 33. Nxf5 {[%emt 0:00:04]} Rd7 {[%emt 0:01:37]} 34. c5 {[%emt 0:00:52]} dxc5 {[%emt 0:00:30]} 35. bxc5 {[%emt 0:00:08]} f6 {[%emt 0:01:46]} 36. Nd6 {[%emt 0:00:44]} Rf8 {[%emt 0:01:31]} 37. g6 {[%emt 0:00:32]} h6 {[%emt 0:00:17]} 38. e4 {[%emt 0:00:41]} Rc7 {[%emt 0:01:58]} 39. Nf5 {[%emt 0:00:25]} Rc8 {[%emt 0:01:05]} 40. Rd2 {[%emt 0:00:45]} Ra8 {[%emt 0:05:32]} 41. Rc4 {[%emt 0:00:34]} Re8 {[%emt 0:02:33]} 42. c6 {[%emt 0:00:23]} bxc6 {[%emt 0:00:17]} 43. dxc6 {[%emt 0:00:06]} Ne6 {[%emt 0:00:40]} 44. Nd6 {[%emt 0:00:40]} Re7 {[%emt 0:00:38]} 45. Nf7+ {[%emt 0:00:48]} Kg8 {[%emt 0:00:11]} 46. Rd7 {[%emt 0:00:26]} Rae8 {[%emt 0:04:19]} 47. Rb7 {[%emt 0:00:38]} Rc7 {[%emt 0:01:15]} 48. Rxc7 {[%emt 0:00:30]} Nxc7 {[%emt 0:00:05]} 49. Ra4 {[%emt 0:00:25]} Re6 {[%emt 0:01:26]} 50. Nd8 {[%emt 0:00:35]} Rd6 {[%emt 0:00:50]} 51. Ra7 {[%emt 0:00:25]} Ne8 {[%emt 0:03:55]} 52. Rd7 {[%emt 0:00:26]} f5 {[%emt 0:00:47]} 53. Rxd6 {[%emt 0:00:40]} Nxd6 {[%emt 0:00:08]} 54. exf5 {[%emt 0:00:18]} Nxf5 {[%emt 0:00:29]} 55. c7 {[%emt 0:00:28]} Nd6 {[%emt 0:00:13]} 56. Ne6 {[%emt 0:00:07]} e4 {[%emt 0:00:21]} 57. Kg2 {[%emt 0:00:20]} Kh8 {[%emt 0:00:32]} 58. Kf2 {[%emt 0:00:21]} Kg8 {[%emt 0:00:13]} 59. Ke3 {[%emt 0:00:25]} Kh8 {[%emt 0:00:09]} 60. Kd4 {[%emt 0:00:49]} Nb5+ {[%emt 0:00:18]} 61. Kxe4 {[%emt 0:00:13]} Nxc7 {[%emt 0:00:16]} 62. Nxc7 {[%emt 0:00:06]} Kg8 {[%emt 0:00:05]} 63. Ke5 {[%emt 0:00:39]} Kh8 {[%emt 0:00:08]} 64. Nb5 {[%emt 0:00:27]} Kg8 {[%emt 0:00:05]} 65. Nd4 {[%emt 0:00:04]} Kh8 {[%emt 0:00:05]} 66. Nf5 {[%emt 0:00:08]} Kg8 {[%emt 0:00:04]} 67. Nxh6+ {[%emt 0:00:12]} gxh6 {[%emt 0:00:06]} 68. Kf6 {[%emt 0:00:11]} Kh8 {[%emt 0:00:05]} 69. Kf5 {[%emt 0:00:34]} Kg7 {[%emt 0:00:19]} 70. Ke5 {[%emt 0:02:51]} Kf8 {[%emt 0:03:09]} 71. Ke6 {[%emt 0:00:21]} Kg8 {[%emt 0:00:38]} 72. Kf6 {[%emt 0:00:33]} Kh8 {[%emt 0:00:08]} 73. g7+ {[%emt 0:00:09]} Kh7 {[%emt 0:00:05]} 74. Kf7 {[%emt 0:00:11]} 1/2-1/2

[Event "POL-chT 2nd League Juniors 2020"]
[Site "Sypniewo"]
[Date "2020.10.28"]
[Round "7.23"]
[White "Lascar, Maria Elena"]
[Black "Matyjasek, Michalina"]
[Result "1/2-1/2"]
[ECO "B34"]
[WhiteElo "1552"]
[BlackElo "1477"]
[Annotator "NA"]
[PlyCount "65"]
[EventDate "2020.10.23"]
[EventType "team-tourn"]
[EventCountry "POL"]
[SourceTitle "playchess.com"]
[Source "ChessBase"]
[SourceQuality "1"]
[TimeControl "5400+30"]

1. e4 {[%emt 0:00:00]} c5 {[%emt 0:00:00]} 2. Nf3 {[%emt 0:00:00]} Nc6 {[%emt 0:00:00]} 3. Nc3 {[%emt 0:00:00]} g6 {[%emt 0:00:29]} 4. d4 {[%emt 0:00:12]} cxd4 {[%emt 0:00:07]} 5. Nxd4 {[%emt 0:00:06]} Bg7 {[%emt 0:00:12]} 6. Nde2 {[%emt 0:00:14]} Nf6 {[%emt 0:04:38]} 7. g3 {[%emt 0:00:07]} O-O {[%emt 0:02:24]} 8. Bg2 {[%emt 0:00:03]} d6 {[%emt 0:02:58]} 9. O-O {[%emt 0:00:06]} Rb8 {[%emt 0:04:14]} 10. a4 {[%emt 0:06:23]} a6 {[%emt 0:06:59]} 11. h3 {[%emt 0:00:52]} b5 {[%emt 0:07:09]} 12. axb5 {[%emt 0:06:27]} axb5 {[%emt 0:01:53]} 13. Be3 {[%emt 0:02:46]} b4 {[%emt 0:09:45]} 14. Nd5 {[%emt 0:11:32]} Nd7 {[%emt 0:08:28]} 15. Rb1 {[%emt 0:09:19]} Ba6 {[%emt 0:10:45]} 16. Re1 {[%emt 0:03:51]} e6 {[%emt 0:08:30]} 17. Ndf4 {[%emt 0:00:54]} Qc7 {[%emt 0:05:22]} 18. Qd2 {[%emt 0:06:11]} Rfd8 {[%emt 0:06:07]} 19. Nd3 {[%emt 0:12:15]} b3 {[%emt 0:05:45]} 20. c3 {[%emt 0:10:54]} Na5 {[%emt 0:09:19]} 21. Nb4 Bc4 22. f4 {[%emt 0:10:53]} Nc5 {[%emt 0:04:00]} 23. g4 {[%emt 0:08:09]} Bb5 {[%emt 0:00:29]} 24. Nc1 {[%emt 0:01:01]} Nc4 {[%emt 0:00:11]} 25. Qf2 {[%emt 0:00:22]} Na6 {[%emt 0:00:38]} 26. Nxa6 {[%emt 0:00:42]} Bxa6 {[%emt 0:00:06]} 27. Bf1 {[%emt 0:02:02]} Nxe3 {[%emt 0:01:20]} 28. Qxe3 {[%emt 0:00:50]} Bxf1 {[%emt 0:00:40]} 29. Rxf1 {[%emt 0:00:53]} Ra8 {[%emt 0:00:39]} 30. Nxb3 {[%emt 0:00:42]} Rdb8 {[%emt 0:00:45]} 31. Nd4 {[%emt 0:01:15]} Qc5 {[%emt 0:01:01]} 32. Rfe1 {[%emt 0:02:11]} Ra2 {[%emt 0:00:33]} 33. b4 1/2-1/2

[Event "POL-chT 2nd League Juniors 2020"]
[Site "Sypniewo"]
[Date "2020.10.29"]
[Round "8.2"]
[White "Niemier, Hubert"]
[Black "Zniszczol, Wiktoria"]
[Result "1/2-1/2"]
[ECO "A45"]
[WhiteElo "1771"]
[BlackElo "1620"]
[Annotator "NA RC"]
[PlyCount "107"]
[EventDate "2020.10.23"]
[EventType "team-tourn"]
[EventCountry "POL"]
[SourceTitle "playchess.com"]
[Source "ChessBase"]
[SourceQuality "1"]
[TimeControl "5400+30"]

1. d4 Nf6 2. Bg5 Ne4 3. h4 h6 4. Bf4 d5 5. Nd2 Nf6 6. e3 e6 7. Bd3 Nbd7 8. Ngf3 c5 9. c3 a6 {[%emt 0:31:55]} 10. a4 {[%emt 0:05:59]} b6 {[%emt 0:00:58]} 11. Ne5 {[%emt 0:04:22]} Nxe5 {[%emt 0:01:42]} 12. dxe5 {[%emt 0:00:23]} Nd7 {[%emt 0:00:37]} 13. Nf3 {[%emt 0:00:09]} Bb7 {[%emt 0:02:10]} 14. g4 {[%emt 0:03:12]} Be7 {[%emt 0:05:07]} 15. Qe2 {[%emt 0:02:21]} c4 {[%emt 0:05:23]} 16. Bc2 {[%emt 0:00:21]} Nc5 {[%emt 0:00:07]} 17. Kd2 {[%emt 0:02:55]} Qd7 {[%emt 0:08:06]} 18. Nd4 {[%emt 0:05:49]} O-O-O {[%emt 0:10:44]} 19. h5 {[%emt 0:01:50]} Bc6 {[%emt 0:11:23]} 20. Qd1 {[%emt 0:12:48]} Bb7 {[%emt 0:06:14]} 21. f3 {[%emt 0:01:31]} Qc7 {[%emt 0:03:10]} 22. Qe2 {[%emt 0:01:09]} Nd7 {[%emt 0:04:47]} 23. Qh2 {[%emt 0:00:09]} Nc5 {[%emt 0:00:23]} 24. Bg3 {[%emt 0:03:30]} Qd7 {[%emt 0:00:52]} 25. Qe2 {[%emt 0:00:28]} Bc6 {[%emt 0:01:47]} 26. Qd1 {[%emt 0:02:47]} Bb7 {[%emt 0:00:39]} 27. Ra2 {[%emt 0:02:57]} Qc7 {[%emt 0:00:47]} 28. Qe2 {[%emt 0:01:43]} Nd7 {[%emt 0:00:45]} 29. Qh2 {[%emt 0:00:04]} Nc5 {[%emt 0:00:14]} 30. Rb1 {[%emt 0:00:08]} Rd7 {[%emt 0:03:23]} 31. Rf1 {[%emt 0:05:34]} Rdd8 {[%emt 0:01:18]} 32. f4 {[%emt 0:00:35]} Rhf8 {[%emt 0:01:03]} 33. f5 {[%emt 0:00:53]} Bg5 {[%emt 0:00:07]} 34. Raa1 {[%emt 0:08:19]} Qd7 {[%emt 0:00:31]} 35. Rf2 {[%emt 0:01:36]} Rg8 {[%emt 0:00:27]} 36. fxe6 {[%emt 0:00:54]} fxe6 {[%emt 0:00:22]} 37. Raf1 {[%emt 0:00:10]} Rde8 {[%emt 0:01:44]} 38. Bh4 {[%emt 0:02:08]} Bxh4 {[%emt 0:00:55]} 39. Qxh4 {[%emt 0:00:08]} Qe7 {[%emt 0:00:37]} 40. Qxe7 {[%emt 0:00:39]} Rxe7 {[%emt 0:00:06]} 41. Rf7 {[%emt 0:00:21]} Rge8 {[%emt 0:00:06]} 42. Bg6 {[%emt 0:00:59]} Kd7 {[%emt 0:00:24]} 43. a5 {[%emt 0:02:12]} bxa5 {[%emt 0:00:20]} 44. R7f3 {[%emt 0:01:15]} Rb8 {[%emt 0:00:29]} 45. Ra1 {[%emt 0:00:27]} a4 {[%emt 0:00:17]} 46. Kc2 {[%emt 0:00:33]} Bc6 {[%emt 0:00:34]} 47. Rf2 {[%emt 0:03:23]} Kc7 {[%emt 0:01:03]} 48. Rf3 {[%emt 0:04:33]} Bb5 {[%emt 0:00:56]} 49. Raf1 {[%emt 0:00:28]} Rb7 {[%emt 0:00:51]} 50. Rf8 {[%emt 0:04:50]} Kb6 {[%emt 0:00:08]} 51. Rd8 {[%emt 0:00:24]} Rbd7 {[%emt 0:00:47]} 52. Rg8 {[%emt 0:00:35]} Rb7 {[%emt 0:00:27]} 53. Rd8 {[%emt 0:02:41]} Rbd7 {[%emt 0:00:17]} 54. Rxd7 {[%emt 0:02:09]} 1/2-1/2